fUST/lending_fUST_20250511
["ID","MTS","AMOUNT","RATE_DAILY","PERIOD"]
[360670352,1746921072653,-815.62,0.0001041,2]
[360670353,1746921072663,-913.31,0.0001041,2]
[360670354,1746921072672,-400.0,0.0001041,2]
[360670355,1746921072681,-891.98,0.0001041,2]
[360670356,1746921072690,-400.0,0.0001041,2]
[360670357,1746921072700,-400.0,0.0001041,2]
[360670358,1746921072710,-433.42,0.0001041,2]
[360670359,1746921072720,-400.0,0.0001041,2]
[360670360,1746921072729,-400.0,0.0001041,2]
[360670361,1746921072739,-499.05357999,0.0001041,2]
[360670362,1746921072748,-400.0,0.0001041,2]
[360670363,1746921072758,-566.41,0.0001041,2]
[360670364,1746921072767,-400.0,0.0001041,2]
[360670365,1746921072776,-525.97,0.0001041,2]
[360670366,1746921072785,-995.7,0.0001041,2]
[360670367,1746921072796,-781.76,0.0001041,2]
[360670368,1746921072805,-400.0,0.0001041,2]
[360670369,1746921072815,-400.0,0.0001041,2]
[360670370,1746921072824,-667.3,0.0001041,2]
[360670371,1746921072834,-197.69529643,0.0001041,2]
[360670372,1746921072846,-4368.25,0.0001041,2]
[360670373,1746921072856,-469.87,0.0001041,2]
[360670374,1746921072866,-400.0,0.0001041,2]
[360670375,1746921072876,-889.92,0.0001041,2]
[360670376,1746921072886,-1169.74,0.0001041,2]
[360670377,1746921072895,-943.01,0.0001041,2]
[360670378,1746921072905,-400.0,0.0001041,2]
[360670379,1746921072915,-400.0,0.0001041,2]
[360670380,1746921072923,-400.0,0.0001041,2]
[360670381,1746921072932,-578.74,0.0001041,2]
[360670382,1746921072944,-1023.9,0.0001041,2]
[360670383,1746921072955,-591.23,0.0001041,2]
[360670384,1746921072965,-1400.58,0.0001041,2]
[360670385,1746921072975,-400.0,0.0001041,2]
[360670386,1746921072984,-867.64,0.0001041,2]
[360670387,1746921072995,-680.3,0.0001041,2]
[360670388,1746921073004,-1954.49,0.0001041,2]
[360670389,1746921073014,-447.62,0.0001041,2]
[360670390,1746921073024,-400.0,0.0001041,2]
[360670391,1746921073034,-400.0,0.0001041,2]
[360670392,1746921073042,-2316.67,0.0001041,2]
[360670393,1746921073052,-400.0,0.0001041,2]
[360670394,1746921073061,-400.0,0.0001041,2]
[360670395,1746921073070,-400.0,0.0001041,2]
[360670396,1746921073080,-400.0,0.0001041,2]
[360670397,1746921073090,-3973.06,0.0001041,2]
[360670398,1746921073100,-400.0,0.0001041,2]
[360670399,1746921073109,-400.0,0.0001041,2]
[360670400,1746921073118,-400.0,0.0001041,2]
[360670401,1746921073127,-400.0,0.0001041,2]
[360670402,1746921073137,-512.8,0.0001041,2]
[360670403,1746921073148,-400.0,0.0001041,2]
[360670404,1746921073158,-400.0,0.0001041,2]
[360670405,1746921073168,-400.0,0.0001041,2]
[360670406,1746921073178,-400.0,0.0001041,2]
[360670407,1746921073187,-400.0,0.0001041,2]
[360670408,1746921073197,-400.0,0.0001041,2]
[360670409,1746921073207,-282.82753773,0.0001041,2]
[360670410,1746921073217,-470.02,0.0001041,2]
[360670411,1746921073227,-462.71,0.0001041,2]
[360670412,1746921073238,-526.80348648,0.0001041,2]
[360670414,1746921073247,-409.84,0.0001041,2]
[360670416,1746921073257,-604.03,0.0001041,2]
[360670429,1746921073386,-1215.23,0.0001041,2]
[360670431,1746921073396,-3780.31,0.0001041,2]
[360670433,1746921073406,-400.0,0.0001041,2]
[360670435,1746921073415,-935.09,0.0001041,2]
[360670437,1746921073424,-400.0,0.0001041,2]
[360670439,1746921073435,-1807.31,0.0001041,2]
[360670441,1746921073444,-1172.88,0.0001041,2]
[360670443,1746921073454,-400.0,0.0001041,2]
[360670445,1746921073464,-1184.38,0.0001041,2]
[360670447,1746921073474,-400.0,0.0001041,2]
[360670449,1746921073484,-401.6,0.0001041,2]
[360670451,1746921073493,-400.0,0.0001041,2]
[360670453,1746921073503,-1947.16,0.0001041,2]
[360670455,1746921073512,-400.0,0.0001041,2]
[360670457,1746921073522,-296.5,0.0001041,2]
[360670459,1746921073532,-400.0,0.00010684,2]
[360670461,1746921073541,-400.0,0.00010684,2]
[360670463,1746921073552,-400.0,0.00010684,2]
[360670465,1746921073561,-400.0,0.00010684,2]
[360670467,1746921073571,-400.0,0.00010684,2]
[360670469,1746921073580,-620.25,0.00010684,2]
[360670471,1746921073591,-400.0,0.00010684,2]
[360670473,1746921073600,-304.19,0.00010684,2]
[360670475,1746921073610,-666.43,0.00010684,2]
[360670477,1746921073619,-465.75,0.00010684,2]
[360670479,1746921073630,-400.0,0.00010684,2]
[360670481,1746921073640,-937.63,0.00010684,2]
[360670483,1746921073649,-400.0,0.00010684,2]
[360670485,1746921073659,-400.0,0.00010684,2]
[360670487,1746921073669,-400.0,0.00010684,2]
[360670489,1746921073678,-485.93,0.00010684,2]
[360670491,1746921073688,-400.0,0.00010684,2]
[360670493,1746921073698,-400.0,0.00010684,2]
[360670495,1746921073708,-400.0,0.00010684,2]
[360670497,1746921073717,-613.19,0.00010684,2]
[360670499,1746921073727,-400.0,0.00010684,2]
[360670501,1746921073736,-400.0,0.00010684,2]
[360670503,1746921073746,-400.0,0.00010684,2]
[360670505,1746921073756,-400.0,0.00010684,2]
[360670507,1746921073765,-400.0,0.00010684,2]
[360670509,1746921073774,-400.0,0.00010684,2]
[360670511,1746921073784,-534.7,0.00010684,2]
[360670513,1746921073794,-400.0,0.00010684,2]
[360670515,1746921073803,-2196.63,0.00010684,2]
[360670517,1746921073813,-400.0,0.00010684,2]
[360670519,1746921073822,-400.0,0.00010684,2]
[360670521,1746921073832,-755.57,0.00010684,2]
[360670524,1746921073844,-400.0,0.00010684,2]
[360670526,1746921073854,-400.0,0.00010684,2]
[360670528,1746921073864,-426.55,0.00010684,2]
[360670530,1746921073874,-795.77,0.00010684,2]
[360670532,1746921073883,-400.0,0.00010684,2]
[360670534,1746921073893,-634.59,0.00010684,2]
[360670536,1746921073903,-400.0,0.00010684,2]
[360670538,1746921073913,-400.0,0.00010684,2]
[360670540,1746921073922,-400.0,0.00010684,2]
[360670542,1746921073931,-400.0,0.00010684,2]
[360670544,1746921073942,-173.53,0.00010684,2]
[360670546,1746921073955,-400.0,0.00010684,2]
[360670548,1746921073964,-400.0,0.00010684,2]
[360670550,1746921073974,-461.06,0.00010684,2]
[360670552,1746921073983,-614.79,0.00010684,2]
[360670554,1746921073995,-258.36,0.00010684,2]
[360670556,1746921074007,-400.0,0.00010684,2]
[360670558,1746921074016,-683.69,0.00010684,2]
[360670560,1746921074026,-935.0,0.00010684,2]
[360670562,1746921074036,-400.0,0.00010684,2]
[360670564,1746921074045,-400.0,0.00010684,2]
[360670566,1746921074056,-434.44,0.00010684,2]
[360670568,1746921074065,-400.0,0.00010684,2]
[360670570,1746921074074,-400.0,0.00010684,2]
[360670572,1746921074084,-400.0,0.00010684,2]
[360670574,1746921074095,-400.0,0.00010684,2]
[360670576,1746921074105,-400.0,0.00010684,2]
[360670578,1746921074114,-400.0,0.00010684,2]
[360670580,1746921074124,-400.0,0.00010684,2]
[360670582,1746921074134,-400.0,0.00010684,2]
[360670584,1746921074143,-400.0,0.00010684,2]
[360670586,1746921074153,-400.0,0.00010684,2]
[360670588,1746921074162,-151.0,0.00010684,2]
[360670590,1746921074171,-867.95,0.00010684,2]
[360670592,1746921074181,-400.0,0.00010684,2]
[360670594,1746921074191,-471.88,0.00010684,2]
[360670596,1746921074200,-400.0,0.00010684,2]
[360670598,1746921074210,-1200.05,0.00010684,2]
[360670600,1746921074219,-400.0,0.00010684,2]
[360670602,1746921074228,-400.0,0.00010684,2]
[360670604,1746921074238,-400.0,0.00010684,2]
[360670606,1746921074247,-453.49,0.00010684,2]
[360670607,1746921074257,-400.0,0.00010684,2]
[360670610,1746921074267,-272.7,0.00010684,2]
[360670612,1746921074277,-4276.42,0.00010684,2]
[360670614,1746921074286,-489.76,0.00010684,2]
[360670616,1746921074296,-400.0,0.00010684,2]
[360670618,1746921074306,-815.62,0.00010684,2]
[360670620,1746921074316,-913.31,0.00010684,2]
[360670622,1746921074326,-400.0,0.00010684,2]
[360670624,1746921074335,-891.98,0.00010684,2]
[360670626,1746921074345,-358.12,0.00010684,2]
[360670628,1746921074355,-400.0,0.00010684,2]
[360670630,1746921074365,-400.0,0.00010684,2]
[360670632,1746921074375,-566.41,0.00010684,2]
[360670633,1746921074384,-400.0,0.00010684,2]
[360670636,1746921074394,-525.97,0.00010684,2]
[360670638,1746921074403,-995.7,0.00010684,2]
[360670640,1746921074414,-781.76,0.00010684,2]
[360670642,1746921074423,-489.92,0.00010684,2]
[360670644,1746921074432,-667.3,0.00010684,2]
[360670646,1746921074442,-4368.25,0.00010684,2]
[360670648,1746921074452,-477.22,0.00010684,2]
[360670650,1746921074462,-889.92,0.00010684,2]
[360670652,1746921074472,-1169.74,0.00010684,2]
[360670654,1746921074481,-943.01,0.00010684,2]
[360670656,1746921074491,-400.0,0.00010684,2]
[360670658,1746921074500,-400.0,0.00010684,2]
[360670660,1746921074510,-400.0,0.00010684,2]
[360670662,1746921074520,-578.74,0.00010684,2]
[360670664,1746921074530,-1023.9,0.00010684,2]
[360670666,1746921074539,-591.23,0.00010684,2]
[360670668,1746921074548,-1400.58,0.00010684,2]
[360670670,1746921074558,-400.0,0.00010684,2]
[360670672,1746921074568,-867.64,0.00010684,2]
[360670674,1746921074577,-680.3,0.00010684,2]
[360670676,1746921074588,-1954.49,0.00010684,2]
[360670678,1746921074597,-400.0,0.00010684,2]
[360670680,1746921074607,-400.0,0.00010684,2]
[360670682,1746921074616,-2316.67,0.00010684,2]
[360670684,1746921074626,-400.0,0.00010684,2]
[360670686,1746921074635,-400.0,0.00010684,2]
[360670688,1746921074644,-400.0,0.00010684,2]
[360670690,1746921074654,-400.0,0.00010684,2]
[360670692,1746921074663,-3973.06,0.00010684,2]
[360670694,1746921074673,-400.0,0.00010684,2]
[360670696,1746921074683,-400.0,0.00010684,2]
[360670698,1746921074692,-400.0,0.00010684,2]
[360670700,1746921074701,-512.8,0.00010684,2]
[360670702,1746921074711,-316.51,0.00010684,2]
[360670704,1746921074720,-400.0,0.00010684,2]
[360670706,1746921074730,-400.0,0.00010684,2]
[360670708,1746921074740,-400.0,0.00010684,2]
[360670710,1746921074749,-462.71,0.00010684,2]
[360670712,1746921074759,-409.84,0.00010684,2]
[360670714,1746921074769,-604.03,0.00010684,2]
[360670716,1746921074779,-1215.23,0.00010684,2]
[360670718,1746921074789,-3780.31,0.00010684,2]
[360670720,1746921074799,-408.96,0.00010684,2]
[360670722,1746921074809,-935.09,0.00010684,2]
[360670724,1746921074819,-1807.31,0.00010684,2]
[360670726,1746921074828,-1172.88,0.00010684,2]
[360670728,1746921074839,-1184.38,0.00010684,2]
[360670730,1746921074848,-400.0,0.00010684,2]
[360670733,1746921074858,-401.6,0.00010684,2]
[360670735,1746921074867,-400.0,0.00010684,2]
[360670737,1746921074877,-1947.16,0.00010684,2]
[360670739,1746921074887,-151.0,0.00010957,2]
[360670741,1746921074898,-400.0,0.00010958,2]
[360670742,1746921074908,-400.0,0.00010958,2]
[360670744,1746921074917,-400.0,0.00010958,2]
[360670746,1746921074926,-400.0,0.00010958,2]
[360670748,1746921074936,-400.0,0.00010958,2]
[360670750,1746921074947,-620.25,0.00010958,2]
[360670752,1746921074958,-400.0,0.00010958,2]
[360670754,1746921074967,-666.43,0.00010958,2]
[360670756,1746921074976,-465.75,0.00010958,2]
[360670758,1746921074987,-400.0,0.00010958,2]
[360670760,1746921074997,-937.63,0.00010958,2]
[360670762,1746921075006,-400.0,0.00010958,2]
[360670764,1746921075016,-278.12,0.00010958,2]
[360670765,1746921075027,-400.0,0.00010958,2]
[360670766,1746921075036,-485.93,0.00010958,2]
[360670767,1746921075045,-400.0,0.00010958,2]
[360670768,1746921075055,-400.0,0.00010958,2]
[360670769,1746921075064,-415.32,0.00010958,2]
[360670770,1746921075073,-613.19,0.00010958,2]
[360670771,1746921075083,-400.0,0.00010958,2]
[360670772,1746921075092,-400.0,0.00010958,2]
[360670773,1746921075102,-400.0,0.00010958,2]
[360670774,1746921075111,-400.0,0.00010958,2]
[360670775,1746921075120,-400.0,0.00010958,2]
[360670776,1746921075130,-534.7,0.00010958,2]
[360670777,1746921075140,-400.0,0.00010958,2]
[360670778,1746921075149,-2196.63,0.00010958,2]
[360670780,1746921075159,-400.0,0.00010958,2]
[360670782,1746921075168,-400.0,0.00010958,2]
[360670784,1746921075178,-755.57,0.00010958,2]
[360670786,1746921075188,-400.0,0.00010958,2]
[360670788,1746921075197,-400.0,0.00010958,2]
[360670790,1746921075207,-426.55,0.00010958,2]
[360670792,1746921075216,-795.77,0.00010958,2]
[360670794,1746921075226,-400.0,0.00010958,2]
[360670796,1746921075236,-634.59,0.00010958,2]
[360670798,1746921075246,-400.0,0.00010958,2]
[360670800,1746921075256,-400.0,0.00010958,2]
[360670802,1746921075266,-400.0,0.00010958,2]
[360670804,1746921075276,-400.0,0.00010958,2]
[360670806,1746921075286,-400.0,0.00010958,2]
[360670808,1746921075295,-400.0,0.00010958,2]
[360670810,1746921075305,-461.06,0.00010958,2]
[360670812,1746921075315,-614.79,0.00010958,2]
[360670814,1746921075324,-400.0,0.00010958,2]
[360670816,1746921075334,-683.69,0.00010958,2]
[360670818,1746921075345,-935.0,0.00010958,2]
[360670820,1746921075354,-400.0,0.00010958,2]
[360670822,1746921075364,-356.6,0.00010958,2]
[360670824,1746921075374,-400.0,0.00010958,2]
[360670827,1746921075383,-400.0,0.00010958,2]
[360670829,1746921075393,-400.0,0.00010958,2]
[360670830,1746921075403,-400.0,0.00010958,2]
[360670832,1746921075412,-400.0,0.00010958,2]
[360670834,1746921075421,-463.05,0.00010958,2]
[360670836,1746921075431,-400.0,0.00010958,2]
[360670838,1746921075440,-400.0,0.00010958,2]
[360670840,1746921075450,-400.0,0.00010958,2]
[360670842,1746921075459,-400.0,0.00010958,2]
[360670844,1746921075469,-867.95,0.00010958,2]
[360670846,1746921075479,-400.0,0.00010958,2]
[360670858,1746921075599,-471.88,0.00010958,2]
[360670860,1746921075610,-400.0,0.00010958,2]
[360670862,1746921075620,-1200.05,0.00010958,2]
[360670864,1746921075629,-448.27,0.00010958,2]
[360670866,1746921075639,-400.0,0.00010958,2]
[360670867,1746921075649,-453.49,0.00010958,2]
[360670869,1746921075658,-400.0,0.00010958,2]
[360670871,1746921075668,-400.0,0.00010958,2]
[360670873,1746921075678,-4276.42,0.00010958,2]
[360670875,1746921075688,-489.76,0.00010958,2]
[360670876,1746921075698,-202.92,0.00010958,2]
[360670877,1746921075707,-815.62,0.00010958,2]
[360670878,1746921075717,-913.31,0.00010958,2]
[360670879,1746921075726,-400.0,0.00010958,2]
[360670880,1746921075736,-891.98,0.00010958,2]
[360670881,1746921075746,-400.0,0.00010958,2]
[360670882,1746921075755,-400.0,0.00010958,2]
[360670883,1746921075765,-566.41,0.00010958,2]
[360670884,1746921075775,-400.0,0.00010958,2]
[360670885,1746921075785,-525.97,0.00010958,2]
[360670886,1746921075795,-995.7,0.00010958,2]
[360670887,1746921075804,-781.76,0.00010958,2]
[360670888,1746921075814,-667.3,0.00010958,2]
[360670889,1746921075823,-4368.25,0.00010958,2]
[360670890,1746921075833,-889.92,0.00010958,2]
[360670891,1746921075843,-1169.74,0.00010958,2]
[360670892,1746921075853,-943.01,0.00010958,2]
[360670893,1746921075862,-400.0,0.00010958,2]
[360670894,1746921075872,-400.0,0.00010958,2]
[360670895,1746921075882,-400.0,0.00010958,2]
[360670896,1746921075891,-578.74,0.00010958,2]
[360670897,1746921075901,-1023.9,0.00010958,2]
[360670898,1746921075911,-591.23,0.00010958,2]
[360670899,1746921075920,-1400.58,0.00010958,2]
[360670900,1746921075929,-400.0,0.00010958,2]
[360670901,1746921075939,-867.64,0.00010958,2]
[360670902,1746921075952,-680.3,0.00010958,2]
[360670903,1746921075962,-1954.49,0.00010958,2]
[360670904,1746921075971,-400.0,0.00010958,2]
[360670905,1746921075983,-400.0,0.00010958,2]
[360670906,1746921075992,-2316.67,0.00010958,2]
[360670907,1746921076001,-400.0,0.00010958,2]
[360670908,1746921076010,-400.0,0.00010958,2]
[360670909,1746921076021,-3973.06,0.00010958,2]
[360670910,1746921076031,-202.98,0.00010958,2]
[360670911,1746921076041,-400.0,0.00010958,2]
[360670912,1746921076050,-529.23981405,0.00010958,2]
[360670913,1746921076060,-512.8,0.00010958,2]
[360670914,1746921076069,-400.0,0.00010958,2]
[360670915,1746921076078,-208.19,0.00010958,2]
[360670916,1746921076092,-462.71,0.00010958,2]
[360670917,1746921076102,-409.84,0.00010958,2]
[360670918,1746921076111,-604.03,0.00010958,2]
[360670919,1746921076121,-1215.23,0.00010958,2]
[360670920,1746921076131,-3780.31,0.00010958,2]
[360670921,1746921076140,-935.09,0.00010958,2]
[360670922,1746921076150,-1807.31,0.00010958,2]
[360670923,1746921076160,-1172.88,0.00010958,2]
[360670924,1746921076169,-1184.38,0.00010958,2]
[360670925,1746921076179,-400.0,0.00010958,2]
[360670926,1746921076188,-401.6,0.00010958,2]
[360670927,1746921076198,-400.0,0.00010958,2]
[360670928,1746921076208,-1947.16,0.00010958,2]
[360670929,1746921076217,-10856.9575151,0.00010959,2]
[360670930,1746921076226,-1000.0,0.00010959,2]
[360670931,1746921076235,-500.0,0.00010959,2]
[360670932,1746921076245,-500.0,0.00010959,2]
[360670933,1746921076254,-350.0,0.00010959,2]
[360670934,1746921076263,-500.0,0.00010959,2]
[360670935,1746921076272,-500.0,0.00010959,2]
[360670936,1746921076282,-500.0,0.00010959,2]
[360670937,1746921076291,-500.0,0.00010959,2]
[360670938,1746921076301,-500.0,0.00010959,2]
[360670939,1746921076310,-500.0,0.00010959,2]
[360670940,1746921076320,-500.0,0.00010959,2]
[360670941,1746921076330,-500.0,0.00010959,2]
[360670942,1746921076342,-500.0,0.00010959,2]
[360670943,1746921076352,-500.0,0.00010959,2]
[360670944,1746921076361,-500.0,0.00010959,2]
[360670945,1746921076370,-500.0,0.00010959,2]
[360670946,1746921076380,-500.0,0.00010959,2]
[360670947,1746921076390,-500.0,0.00010959,2]
[360670948,1746921076399,-500.0,0.00010959,2]
[360670949,1746921076409,-500.0,0.00010959,2]
[360670950,1746921076418,-500.0,0.00010959,2]
[360670951,1746921076428,-29732.27111594,0.00010962,2]
[360670952,1746921076437,-151.0,0.00011,2]
[360670953,1746921076446,-151.0,0.00011,2]
[360670954,1746921076456,-151.0,0.00011,2]
[360670955,1746921076465,-151.0,0.00011,2]
[360670956,1746921076474,-151.0,0.00011,2]
[360670957,1746921076484,-151.0,0.00011,2]
[360670958,1746921076494,-151.0,0.00011,2]
[360670959,1746921076503,-151.0,0.00011,2]
[360670960,1746921076514,-151.0,0.000111,2]
[360670961,1746921076523,-151.0,0.000111,2]
[360670962,1746921076532,-151.0,0.000111,2]
[360670963,1746921076542,-151.0,0.000111,2]
[360670964,1746921076551,-2494.81685812,0.000112,2]
[360670965,1746921076560,-151.0,0.000112,2]
[360670966,1746921076570,-151.0,0.000112,2]
[360670967,1746921076579,-151.0,0.000112,2]
[360670968,1746921076589,-400.0,0.00011232,2]
[360670969,1746921076600,-400.0,0.00011232,2]
[360670970,1746921076609,-400.0,0.00011232,2]
[360670971,1746921076619,-400.0,0.00011232,2]
[360670972,1746921076628,-400.0,0.00011232,2]
[360670973,1746921076637,-620.25,0.00011232,2]
[360670974,1746921076646,-400.0,0.00011232,2]
[360670975,1746921076656,-666.43,0.00011232,2]
[360670976,1746921076665,-465.75,0.00011232,2]
[360670977,1746921076674,-400.0,0.00011232,2]
[360670978,1746921076684,-937.63,0.00011232,2]
[360670979,1746921076693,-442.72,0.00011232,2]
[360670980,1746921076703,-198.26,0.00011232,2]
[360670981,1746921076712,-485.93,0.00011232,2]
[360670982,1746921076722,-400.0,0.00011232,2]
[360670983,1746921076732,-252.19,0.00011232,2]
[360670984,1746921076741,-613.19,0.00011232,2]
[360670985,1746921076752,-400.0,0.00011232,2]
[360670986,1746921076761,-400.0,0.00011232,2]
[360670987,1746921076771,-400.0,0.00011232,2]
[360670988,1746921076780,-509.3,0.00011232,2]
[360670989,1746921076790,-400.0,0.00011232,2]
[360670990,1746921076799,-534.7,0.00011232,2]
[360670991,1746921076809,-400.0,0.00011232,2]
[360670992,1746921076818,-2196.63,0.00011232,2]
[360670993,1746921076827,-400.0,0.00011232,2]
[360670994,1746921076836,-400.0,0.00011232,2]
[360670995,1746921076848,-755.57,0.00011232,2]
[360670996,1746921076858,-189.27,0.00011232,2]
[360670997,1746921076868,-400.0,0.00011232,2]
[360670998,1746921076878,-426.55,0.00011232,2]
[360670999,1746921076887,-795.77,0.00011232,2]
[360671000,1746921076897,-400.0,0.00011232,2]
[360671001,1746921076908,-634.59,0.00011232,2]
[360671002,1746921076918,-400.0,0.00011232,2]
[360671003,1746921076928,-400.0,0.00011232,2]
[360671004,1746921076938,-400.0,0.00011232,2]
[360671005,1746921076953,-400.0,0.00011232,2]
[360671006,1746921076963,-400.0,0.00011232,2]
[360671007,1746921076972,-400.0,0.00011232,2]
[360671008,1746921076982,-461.06,0.00011232,2]
[360671009,1746921076993,-614.79,0.00011232,2]
[360671010,1746921077003,-400.0,0.00011232,2]
[360671011,1746921077012,-683.69,0.00011232,2]
[360671012,1746921077022,-935.0,0.00011232,2]
[360671013,1746921077031,-400.0,0.00011232,2]
[360671014,1746921077040,-400.0,0.00011232,2]
[360671015,1746921077049,-400.0,0.00011232,2]
[360671016,1746921077058,-400.0,0.00011232,2]
[360671017,1746921077067,-400.0,0.00011232,2]
[360671018,1746921077076,-400.0,0.00011232,2]
[360671019,1746921077086,-240.82,0.00011232,2]
[360671020,1746921077097,-400.0,0.00011232,2]
[360671021,1746921077106,-400.0,0.00011232,2]
[360671022,1746921077116,-400.0,0.00011232,2]
[360671023,1746921077126,-867.95,0.00011232,2]
[360671024,1746921077135,-400.0,0.00011232,2]
[360671025,1746921077144,-471.88,0.00011232,2]
[360671026,1746921077154,-400.0,0.00011232,2]
[360671027,1746921077163,-1200.05,0.00011232,2]
[360671028,1746921077173,-400.0,0.00011232,2]
[360671029,1746921077182,-453.49,0.00011232,2]
[360671030,1746921077192,-400.0,0.00011232,2]
[360671031,1746921077202,-400.0,0.00011232,2]
[360671032,1746921077211,-4276.42,0.00011232,2]
[360671033,1746921077221,-489.76,0.00011232,2]
[360671034,1746921077230,-815.62,0.00011232,2]
[360671035,1746921077240,-913.31,0.00011232,2]
[360671036,1746921077250,-400.0,0.00011232,2]
[360671037,1746921077260,-891.98,0.00011232,2]
[360671038,1746921077270,-566.41,0.00011232,2]
[360671039,1746921077280,-400.0,0.00011232,2]
[360671040,1746921077290,-525.97,0.00011232,2]
[360671041,1746921077300,-995.7,0.00011232,2]
[360671042,1746921077309,-781.76,0.00011232,2]
[360671043,1746921077319,-667.3,0.00011232,2]
[360671044,1746921077328,-4368.25,0.00011232,2]
[360671045,1746921077338,-889.92,0.00011232,2]
[360671046,1746921077348,-1169.74,0.00011232,2]
[360671047,1746921077358,-943.01,0.00011232,2]
[360671048,1746921077367,-352.92,0.00011232,2]
[360671049,1746921077377,-420.46,0.00011232,2]
[360671050,1746921077387,-400.0,0.00011232,2]
[360671051,1746921077396,-578.74,0.00011232,2]
[360671052,1746921077406,-1023.9,0.00011232,2]
[360671053,1746921077415,-591.23,0.00011232,2]
[360671054,1746921077425,-400.0,0.00011232,2]
[360671055,1746921077435,-1400.58,0.00011232,2]
[360671056,1746921077444,-867.64,0.00011232,2]
[360671057,1746921077454,-1954.49,0.00011232,2]
[360671058,1746921077464,-680.3,0.00011232,2]
[360671059,1746921077473,-400.0,0.00011232,2]
[360671060,1746921077482,-400.0,0.00011232,2]
[360671061,1746921077491,-2316.67,0.00011232,2]
[360671062,1746921077500,-400.0,0.00011232,2]
[360671063,1746921077509,-400.0,0.00011232,2]
[360671064,1746921077519,-3973.06,0.00011232,2]
[360671065,1746921077629,-400.0,0.00011232,2]
[360671066,1746921077640,-512.8,0.00011232,2]
[360671067,1746921077651,-400.0,0.00011232,2]
[360671068,1746921077660,-462.71,0.00011232,2]
[360671069,1746921077670,-409.84,0.00011232,2]
[360671070,1746921077680,-604.03,0.00011232,2]
[360671071,1746921077690,-1215.23,0.00011232,2]
[360671072,1746921077700,-3780.31,0.00011232,2]
[360671073,1746921077710,-935.09,0.00011232,2]
[360671074,1746921077720,-1807.31,0.00011232,2]
[360671075,1746921077729,-1172.88,0.00011232,2]
[360671076,1746921077739,-1184.38,0.00011232,2]
[360671077,1746921077749,-400.0,0.00011232,2]
[360671078,1746921077759,-401.6,0.00011232,2]
[360671079,1746921077769,-400.0,0.00011232,2]
[360671080,1746921077778,-1947.16,0.00011232,2]
[360671081,1746921077787,-167.34296163,0.00011371,2]
[360671082,1746921077797,-151.0,0.000114,2]
[360671083,1746921077806,-12500.0,0.000114,2]
[360671084,1746921077818,-12500.0,0.00011409,2]
[360671085,1746921077828,-12500.0,0.00011418,2]
[360671086,1746921077837,-12500.0,0.00011427,2]